bitfinex/quotes_BTCUSD_20250326
["timestamp","ask_amount","ask_price","bid_price","bid_amount"]
[1742954480518,0.55797825,87977.0,87976.0,0.0013394]
[1742954480884,1.09664625,87977.0,87976.0,0.0033394]
[1742954482276,1.07884639,87977.0,87976.0,0.0033394]
[1742954482479,1.19310403,87977.0,87976.0,0.0033394]
[1742954482687,1.07884639,87977.0,87976.0,0.0033394]
[1742954486711,1.09664757,87977.0,87976.0,0.0033394]
[1742954491403,0.55797957,87977.0,87976.0,0.0033394]
[1742954491835,1.74808057,87977.0,87976.0,0.0033394]
[1742954492410,1.73027939,87977.0,87976.0,0.0033394]
[1742954492929,1.84453703,87977.0,87976.0,0.0033394]
[1742954493104,1.92113703,87977.0,87976.0,0.0033394]
[1742954494097,1.14970939,87977.0,87976.0,0.0033394]
[1742954494470,1.12232239,87977.0,87976.0,0.0033394]
[1742954495027,0.84679239,87977.0,87976.0,0.0033394]
[1742954496720,0.86118368,87977.0,87976.0,0.0033394]
[1742954501320,0.98890368,87977.0,87976.0,0.0033394]
[1742954502284,0.74108839,87977.0,87976.0,0.0033394]
[1742954502487,1.32946239,87977.0,87976.0,0.0033394]
[1742954503135,1.24938039,87977.0,87976.0,0.0033394]
[1742954504071,1.00777539,87977.0,87976.0,0.0033394]
[1742954504286,1.13545539,87977.0,87976.0,0.0033394]
[1742954504892,1.13541539,87977.0,87976.0,0.0033394]
[1742954505825,1.24967303,87977.0,87976.0,0.0033394]
[1742954506706,1.2674744,87977.0,87976.0,0.0033394]
[1742954507490,1.3157744,87977.0,87976.0,0.0033394]
[1742954508013,1.3157744,87977.0,87976.0,0.0023394]
[1742954508457,1.3157744,87977.0,87976.0,0.0033394]
[1742954508817,1.3157744,87977.0,87976.0,0.0023394]
[1742954508991,1.3157744,87977.0,87976.0,0.0003394]
[1742954509192,1.3157744,87977.0,87976.0,0.0013394]
[1742954509774,1.20151676,87977.0,87976.0,0.0003394]
[1742954512378,1.18371539,87977.0,87976.0,0.0003394]
[1742954513228,0.78930839,87977.0,87976.0,0.0003394]
[1742954513628,5.78930839,87977.0,87976.0,0.0003394]
[1742954513989,5.64071139,87977.0,87976.0,0.0003394]
[1742954514394,5.75496903,87977.0,87976.0,0.0003394]
[1742954514606,5.59272903,87977.0,87976.0,0.0003394]
[1742954515373,5.61053002,87977.0,87976.0,0.0003394]
[1742954515578,5.49627238,87977.0,87976.0,0.0003394]
[1742954515772,4.34755238,87977.0,87976.0,0.0003394]
[1742954521666,4.34789178,87977.0,87976.0,0.0003394]
[1742954522553,4.33009079,87977.0,87976.0,0.0003394]
[1742954523155,4.44434843,87977.0,87976.0,0.0003394]
[1742954524000,4.33009079,87977.0,87976.0,0.0003394]
[1742954524188,0.78964779,87977.0,87976.0,0.0003394]
[1742954524402,5.78964779,87977.0,87976.0,0.0003394]
[1742954524599,0.78964779,87977.0,87976.0,0.0003394]
[1742954524812,5.78964779,87977.0,87976.0,0.0003394]
[1742954525721,5.80744833,87977.0,87976.0,0.0003394]
[1742954526299,5.31730397,87977.0,87976.0,0.0003394]
[1742954527458,5.20304633,87977.0,87976.0,0.0003394]
[1742954531348,5.20304633,87977.0,87966.0,6e-07]
[1742954531349,0.54020439,87967.0,87966.0,6e-07]
[1742954531558,0.67030439,87967.0,87966.0,6e-07]
[1742954531758,0.67030439,87967.0,87942.0,0.02128862]
[1742954531759,0.54027139,87943.0,87942.0,0.02128862]
[1742954531943,3.07009039,87943.0,87942.0,0.02128862]
[1742954532143,3.64482339,87943.0,87942.0,0.02128862]
[1742954532342,0.538801,87939.0,87938.0,0.0003392]
[1742954532560,5.41120503,87939.0,87938.0,0.0003392]
[1742954532765,5.65453903,87939.0,87938.0,2e-07]
[1742954533007,0.65453903,87939.0,87938.0,2e-07]
[1742954533799,0.68790298,87939.0,87938.0,2e-07]
[1742954534459,0.311371,87938.0,87937.0,4e-07]
[1742954534667,5.37377481,87938.0,87937.0,4e-07]
[1742954534931,0.37377481,87938.0,87937.0,4e-07]
[1742954535342,0.39158481,87938.0,87937.0,4e-07]
[1742954535544,0.39158481,87938.0,87937.0,0.0020004]
[1742954535691,5.42695323,87938.0,87937.0,0.0020004]
[1742954535896,5.30950223,87938.0,87937.0,0.0020004]
[1742954536111,5.21977223,87938.0,87937.0,0.0020004]
[1742954536319,5.18440381,87938.0,87937.0,0.0020004]
[1742954536729,5.06293881,87938.0,87937.0,0.0020004]
[1742954537095,4.84673781,87938.0,87937.0,0.0030004]
[1742954537289,4.84673781,87938.0,87937.0,0.0010004]
[1742954538550,4.84673781,87938.0,87937.0,0.0020004]
[1742954539189,4.92693781,87938.0,87937.0,4e-07]
[1742954539307,0.47178481,87938.0,87937.0,4e-07]
[1742954539508,0.52168481,87938.0,87937.0,4e-07]
[1742954539941,0.97535323,87938.0,87937.0,4e-07]
[1742954540398,0.54029539,87934.0,87907.0,0.0811]
[1742954540526,0.65455303,87934.0,87907.0,0.0811]
[1742954540741,0.76811698,87934.0,87907.0,0.0811]
[1742954541754,0.73875303,87934.0,87907.0,0.0811]
[1742954542138,0.74175303,87934.0,87907.0,0.0811]
[1742954542318,0.74175303,87934.0,87904.0,0.0480394]
[1742954543946,0.77511698,87934.0,87904.0,0.0480394]
[1742954544343,0.77511698,87934.0,87904.0,0.0003394]
[1742954544344,0.78011698,87934.0,87904.0,0.0003394]
[1742954544667,0.8154854,87934.0,87904.0,0.0003394]
[1742954545180,0.8200464,87934.0,87904.0,0.0003394]
[1742954545590,0.83785904,87934.0,87904.0,0.0003394]
[1742954545884,1.22079062,87934.0,87904.0,0.0003394]
[1742954552140,1.18742667,87934.0,87904.0,0.0003394]
[1742954552346,1.16961403,87934.0,87904.0,0.0003394]
[1742954555205,1.29669403,87934.0,87904.0,0.0003394]
[1742954555421,1.31450641,87934.0,87904.0,0.0003394]
[1742954562028,1.18742641,87934.0,87904.0,0.0003394]
[1742954562357,1.29657403,87934.0,87904.0,0.0003394]
[1742954565358,1.3143864,87934.0,87904.0,0.0003394]
[1742954568759,0.98796876,87934.0,87916.0,0.0827]
[1742954568990,1.11488876,87934.0,87916.0,0.0827]
[1742954569159,0.98796876,87934.0,87916.0,0.0827]
[1742954569372,1.11488876,87934.0,87916.0,0.0827]
[1742954569789,1.11032776,87934.0,87916.0,0.0827]
[1742954569993,1.3957894,87934.0,87914.0,0.0481]
[1742954570127,1.2688694,87934.0,87908.0,0.0827]
[1742954570361,1.3958294,87934.0,87908.0,0.0827]
[1742954571892,1.42919335,87934.0,87908.0,0.0827]
[1742954572077,1.46456177,87934.0,87908.0,0.0827]
[1742954572285,1.4467494,87934.0,87908.0,0.0827]
[1742954572936,1.46129025,87934.0,87908.0,0.0827]
[1742954573295,1.42592183,87934.0,87908.0,0.0827]
[1742954575479,1.44373506,87934.0,87908.0,0.0827]
[1742954579464,1.41037111,87934.0,87908.0,0.0827]
[1742954582331,1.39255788,87934.0,87908.0,0.0827]
[1742954586635,1.41037177,87934.0,87908.0,0.0827]
[1742954591304,1.41017177,87934.0,87908.0,0.0827]
[1742954592313,1.39235788,87934.0,87908.0,0.0827]
[1742954594247,0.54033839,87918.0,87917.0,6e-07]
[1742954594596,0.66713839,87918.0,87917.0,6e-07]
[1742954595329,0.66913839,87918.0,87917.0,6e-07]
[1742954595989,0.66913839,87918.0,87902.0,2e-07]
[1742954595990,0.00148039,87903.0,87902.0,2e-07]
[1742954596218,0.54039239,87898.0,87897.0,2e-07]
[1742954596614,0.5582108,87898.0,87897.0,2e-07]
[1742954596814,0.5816702,87898.0,87897.0,2e-07]
[1742954597227,0.5816702,87898.0,87897.0,2.9e-07]
[1742954597648,0.5836702,87898.0,87897.0,2.9e-07]
[1742954597810,0.7089902,87898.0,87897.0,2.9e-07]
[1742954598210,0.7109902,87898.0,87897.0,2.9e-07]
[1742954599071,0.7129902,87898.0,87897.0,2.9e-07]
[1742954600223,0.7894902,87898.0,87897.0,2.9e-07]
[1742954601288,1.2127902,87898.0,87897.0,2.9e-07]
[1742954601490,0.538955,87882.0,87881.0,2.9e-07]
[1742954601696,0.66903539,87882.0,87881.0,9.329e-05]
[1742954602335,0.68685679,87882.0,87881.0,9.329e-05]
[1742954602530,0.66903539,87882.0,87881.0,9.329e-05]
[1742954602687,5.37702463,87882.0,87881.0,0.00209329]
[1742954602887,5.32493863,87882.0,87881.0,0.00209329]
[1742954603110,5.32493863,87882.0,87881.0,2.9e-07]
[1742954603111,5.26327863,87882.0,87881.0,2.9e-07]
[1742954603327,0.75983363,87882.0,87881.0,2.9e-07]
[1742954604689,0.54049339,87861.0,87860.0,0.0798]
[1742954604886,0.54049339,87861.0,87860.0,0.0802099]
[1742954605131,1.48377839,87861.0,87860.0,0.0802099]
[1742954605331,1.85739616,87861.0,87860.0,0.0802099]
[1742954605507,1.68201316,87861.0,87860.0,0.0802099]
[1742954605812,1.66925216,87861.0,87860.0,0.0802099]
[1742954606039,1.67125216,87861.0,87860.0,0.0802099]
[1742954606784,0.56031616,87861.0,87860.0,0.0802099]
[1742954607137,0.56131616,87861.0,87860.0,0.0802099]
[1742954607335,1.60772316,87861.0,87860.0,0.0802099]
[1742954607543,1.63528263,87861.0,87860.0,0.0004099]
[1742954610744,1.63528263,87861.0,87860.0,9e-07]
[1742954610961,0.56131616,87861.0,87860.0,9e-07]
[1742954614491,0.65830392,87861.0,87860.0,9e-07]
[1742954615132,0.65830392,87861.0,87840.0,0.0489]
[1742954615133,0.539043,87850.0,87849.0,3e-07]
[1742954615274,0.539043,87850.0,87849.0,9.334e-05]
[1742954615474,0.64223439,87850.0,87849.0,9.334e-05]
[1742954615738,0.54053439,87846.0,87845.0,1.4e-07]
[1742954615922,0.54053439,87846.0,87845.0,0.00011646]
[1742954615923,0.67077439,87846.0,87845.0,0.00011646]
[1742954616845,5.67059228,87846.0,87845.0,0.00011646]
[1742954617059,0.67059228,87846.0,87845.0,0.00011646]
[1742954617256,5.68723899,87846.0,87845.0,0.00211646]
[1742954617458,0.67059228,87846.0,87845.0,0.00211646]
[1742954617953,5.26974228,87846.0,87845.0,0.00211646]
[1742954618166,5.26974228,87846.0,87845.0,0.00411646]
[1742954618371,5.28757038,87846.0,87845.0,0.00411646]
[1742954618571,5.28757038,87846.0,87845.0,0.00211646]
[1742954618707,4.99046738,87846.0,87845.0,0.00211646]
[1742954618908,4.99046738,87846.0,87845.0,0.00311646]
[1742954619850,4.99046738,87846.0,87845.0,0.00111646]
[1742954620172,5.10472502,87846.0,87845.0,0.00111646]
[1742954620372,5.10472502,87846.0,87845.0,4.6e-07]
[1742954620373,5.18462502,87846.0,87845.0,4.6e-07]
[1742954620699,0.88257802,87846.0,87845.0,4.6e-07]
[1742954621601,0.54057739,87830.0,87829.0,0.59104]
[1742954621739,1.72480639,87830.0,87829.0,0.59115611]
[1742954621937,1.72454239,87830.0,87829.0,0.59655816]
[1742954622125,1.59090739,87830.0,87829.0,0.59655816]
[1742954622330,1.54465139,87830.0,87829.0,0.59655816]
[1742954622579,1.48980139,87830.0,87829.0,0.59655816]
[1742954623242,0.67073739,87830.0,87829.0,0.59655816]
[1742954624042,0.54057739,87830.0,87829.0,0.59955816]
[1742954624241,0.54057739,87830.0,87829.0,0.60155816]
[1742954624641,0.81781339,87830.0,87829.0,0.60155816]
[1742954626374,0.81781339,87830.0,87829.0,0.01051816]
[1742954626707,0.83564311,87830.0,87829.0,0.00511611]
[1742954631380,0.83564311,87830.0,87829.0,0.00528601]
[1742954632307,0.81781339,87830.0,87829.0,0.00528601]
[1742954633178,0.78250339,87830.0,87829.0,0.08618601]
[1742954633410,0.69983639,87830.0,87829.0,0.08618601]
[1742954634438,0.69983639,87830.0,87829.0,0.00528601]
[1742954635188,0.54057739,87830.0,87829.0,0.00528601]
[1742954635324,0.55840711,87830.0,87829.0,0.00528601]
[1742954635931,2.76368811,87830.0,87829.0,0.00528601]
[1742954636087,2.71705711,87830.0,87829.0,0.00528601]
[1742954638488,2.40025911,87830.0,87829.0,0.00528601]
[1742954638732,2.35757511,87830.0,87829.0,0.00528601]
[1742954639691,2.09854911,87830.0,87829.0,0.00528601]
[1742954640035,2.05751911,87830.0,87829.0,0.00528601]
[1742954645394,2.03968939,87830.0,87829.0,0.00528601]
[1742954645997,0.54057739,87830.0,87829.0,0.00528601]
[1742954646607,2.43182439,87830.0,87829.0,0.00528601]
[1742954648019,2.33377939,87830.0,87829.0,0.00528601]
[1742954648415,2.35160925,87830.0,87829.0,0.00528601]
[1742954651239,2.48068925,87830.0,87829.0,0.00528601]
[1742954651442,2.59494689,87830.0,87829.0,0.00528601]
[1742954651850,2.48068925,87830.0,87829.0,0.00528601]
[1742954652162,2.06674225,87830.0,87829.0,0.00528601]
[1742954652565,2.04891239,87830.0,87829.0,0.00528601]
[1742954655713,1.91983239,87830.0,87829.0,0.00528601]
[1742954655947,1.34361739,87830.0,87829.0,0.00528601]
[1742954656947,0.55840717,87830.0,87829.0,0.00528601]
[1742954657097,1.39647117,87830.0,87829.0,0.00528601]
[1742954657350,1.64018417,87830.0,87829.0,0.00528601]
[1742954659643,1.36907717,87830.0,87829.0,0.00528601]
[1742954659850,1.29347517,87830.0,87829.0,0.00528601]
[1742954660157,0.89627617,87830.0,87829.0,0.00528601]
[1742954661881,0.89623616,87830.0,87829.0,0.00528601]
[1742954662372,0.87840638,87830.0,87829.0,0.00528601]
[1742954665437,0.89623588,87830.0,87829.0,0.00528601]
[1742954672264,0.87840638,87830.0,87829.0,0.00528601]
[1742954675381,0.89623614,87830.0,87829.0,0.00528601]
[1742954678798,0.55836714,87830.0,87829.0,0.00528601]
[1742954679014,2.05185734,87830.0,87829.0,0.00528601]
[1742954679219,1.94146734,87830.0,87829.0,0.00528601]
[1742954680222,1.01642034,87830.0,87829.0,0.00528601]
[1742954682270,0.99859058,87830.0,87829.0,0.00528601]
[1742954686651,1.01642031,87830.0,87829.0,0.00528601]
[1742954689692,1.95847131,87830.0,87829.0,0.00528601]
[1742954690228,1.92995531,87830.0,87829.0,0.00528601]
[1742954690463,1.81588031,87830.0,87829.0,0.00528601]
[1742954692343,1.79805058,87830.0,87829.0,0.00528601]
[1742954696718,1.81588031,87830.0,87829.0,0.00528601]
[1742954700035,0.78132431,87830.0,87829.0,0.00528601]
[1742954700267,0.74259131,87830.0,87829.0,0.00528601]
[1742954702440,0.72476158,87830.0,87829.0,0.00528601]
[1742954703705,0.91601922,87830.0,87829.0,0.00528601]
[1742954704040,0.80176158,87830.0,87829.0,0.00528601]
[1742954705361,0.85046158,87830.0,87829.0,1e-08]
[1742954705558,0.66657658,87830.0,87829.0,1e-08]
[1742954706419,0.78083422,87830.0,87829.0,1e-08]
[1742954706531,0.78083422,87830.0,87821.0,0.002]
[1742954706532,0.54059939,87822.0,87821.0,1e-08]
[1742954706740,0.79405939,87822.0,87821.0,4.092e-05]
[1742954707152,0.79405939,87822.0,87821.0,0.00419342]
[1742954708181,4.00962639,87822.0,87821.0,0.00419342]
[1742954708479,4.24735239,87822.0,87821.0,0.00419342]
[1742954708681,4.22661039,87822.0,87821.0,0.00419342]
[1742954708906,3.65034039,87822.0,87821.0,0.00419342]
[1742954709357,3.52258039,87822.0,87821.0,0.00419342]
[1742954709557,3.65038039,87822.0,87821.0,0.00419342]
[1742954709758,3.65238039,87822.0,87821.0,0.00419342]
[1742954710670,0.79709939,87822.0,87821.0,0.00419342]
[1742954711077,5.17302039,87822.0,87821.0,0.00419342]
[1742954711304,5.71044403,87822.0,87821.0,0.00419342]
[1742954711492,5.50789803,87822.0,87821.0,0.00419342]
[1742954711834,5.07085803,87822.0,87821.0,0.00419342]
[1742954712476,4.76056103,87822.0,87821.0,0.00419342]
[1742954713382,4.64638339,87822.0,87821.0,0.00419342]
[1742954714142,4.64638339,87822.0,87821.0,0.00436302]
[1742954715275,4.66421745,87822.0,87821.0,0.00436302]
[1742954717677,1.35033606,87822.0,87821.0,0.00436302]
[1742954718008,0.53012706,87822.0,87821.0,0.00436302]
[1742954718158,0.36505306,87822.0,87821.0,0.01123801]
[1742954718345,0.25995306,87822.0,87821.0,0.00436302]
[1742954718543,1.77582745,87822.0,87821.0,0.00436302]
[1742954718740,1.55217045,87822.0,87821.0,0.00436302]
[1742954718955,1.49671545,87822.0,87821.0,0.00436302]
[1742954719143,1.18568545,87822.0,87821.0,0.00436302]
[1742954719341,1.14203545,87822.0,87821.0,0.00436302]
[1742954719544,1.14003545,87822.0,87821.0,0.00436302]
[1742954722381,1.36495903,87822.0,87821.0,0.00436302]
[1742954723697,1.25070139,87822.0,87821.0,0.00436302]
[1742954725413,1.2685348,87822.0,87821.0,0.00436302]
[1742954726924,1.268874,87822.0,87821.0,0.00436302]
[1742954728133,1.29016774,87822.0,87821.0,0.00436302]
[1742954728387,0.70956574,87822.0,87821.0,0.00436302]
[1742954728727,5.55730174,87822.0,87821.0,0.00436302]
[1742954728925,5.53638538,87822.0,87821.0,0.00436302]
[1742954729157,5.36945938,87822.0,87821.0,0.00436302]
[1742954729769,5.36945938,87822.0,87821.0,2e-08]
[1742954730028,5.36945938,87822.0,87809.0,0.0001698]
[1742954730029,0.618852,87810.0,87809.0,0.0001698]
[1742954730201,0.3,87809.0,87800.0,41.57747248]
[1742954730411,0.67195639,87801.0,87800.0,39.94995844]
[1742954730611,4.89264139,87801.0,87800.0,38.61193644]
[1742954730777,5.11428339,87801.0,87800.0,38.61193644]
[1742954730974,4.86207939,87801.0,87800.0,38.61193644]
[1742954731174,4.52908103,87801.0,87800.0,38.61193644]
[1742954731809,4.41482339,87801.0,87800.0,38.61193644]
[1742954732239,4.40982339,87801.0,87800.0,38.61193644]
[1742954732442,4.53938339,87801.0,87800.0,38.61193644]
[1742954732747,4.50311039,87801.0,87800.0,38.61193644]
[1742954733067,4.50315039,87801.0,87800.0,38.61193644]
[1742954733344,4.50615039,87801.0,87800.0,38.61193644]
[1742954733523,4.62040803,87801.0,87800.0,38.61193644]
[1742954733858,4.64164375,87801.0,87800.0,38.61193644]
[1742954734844,4.52738611,87801.0,87800.0,38.61193644]
[1742954735241,4.54522519,87801.0,87800.0,38.61193644]
[1742954735612,4.55022519,87801.0,87800.0,38.61193644]
[1742954736474,4.58417557,87801.0,87800.0,38.61193644]
[1742954738993,0.88158157,87801.0,87800.0,38.03005344]
[1742954739135,0.99583921,87801.0,87800.0,36.74158544]
[1742954739334,5.59235906,87801.0,87800.0,35.32097814]
[1742954739669,6.03573346,87801.0,87800.0,35.32097814]
[1742954739873,5.86409846,87801.0,87800.0,35.32097814]
[1742954740710,5.83014808,87801.0,87800.0,35.32097814]
[1742954740863,5.83014808,87801.0,87800.0,35.32813503]
[1742954741464,4.86489908,87801.0,87800.0,35.32813503]
[1742954741687,4.22381159,87801.0,87800.0,35.32813503]
[1742954742391,4.20597251,87801.0,87800.0,35.32813503]
[1742954744139,4.07637251,87801.0,87800.0,35.32813503]
[1742954744347,3.90833251,87801.0,87800.0,35.32813503]
[1742954744720,4.20833251,87801.0,87800.0,35.32813503]
[1742954744924,4.32259015,87801.0,87800.0,35.32813503]
[1742954745466,4.37430599,87801.0,87800.0,35.32813503]
[1742954745682,4.26004835,87801.0,87800.0,35.32813503]
[1742954746612,4.26504835,87801.0,87800.0,35.32813503]
[1742954748214,4.26104835,87801.0,87800.0,35.32813503]
[1742954748621,4.26604835,87801.0,87800.0,35.32813503]
[1742954748779,4.26304835,87801.0,87800.0,35.32813503]
[1742954748974,4.37730599,87801.0,87800.0,35.32813503]
[1742954750125,1.41476499,87801.0,87800.0,35.32813503]
[1742954750285,1.41976499,87801.0,87800.0,35.32813503]
[1742954750829,5.65447828,87801.0,87800.0,35.32813503]
[1742954752140,5.57119428,87801.0,87800.0,35.32813503]
[1742954752458,5.15721928,87801.0,87800.0,35.32813503]
[1742954752597,5.13938015,87801.0,87800.0,35.32813503]
[1742954755288,5.11647915,87801.0,87800.0,35.32813503]
[1742954756516,5.10095815,87801.0,87800.0,35.32813503]
[1742954756694,5.1187984,87801.0,87800.0,35.32813503]
[1742954757594,5.0896874,87801.0,87800.0,35.32813503]
[1742954758099,4.9327694,87801.0,87800.0,35.32813503]
[1742954758299,4.7734444,87801.0,87800.0,35.32813503]
[1742954758507,4.6682604,87801.0,87800.0,35.32813503]
[1742954760908,1.3858894,87801.0,87800.0,35.32813503]
[1742954761343,5.4100954,87801.0,87800.0,35.32813503]
[1742954762068,5.1896474,87801.0,87800.0,35.32813503]
[1742954762627,5.17180715,87801.0,87800.0,35.32813503]
[1742954763023,5.00626715,87801.0,87800.0,35.32813503]
[1742954763349,4.94396651,87801.0,87800.0,35.32813503]
[1742954763518,4.64350851,87801.0,87800.0,35.32813503]
[1742954763910,4.62227279,87801.0,87800.0,35.32813503]
[1742954766783,4.64011306,87801.0,87800.0,35.32813503]
[1742954769055,4.48029306,87801.0,87800.0,35.32813503]
[1742954769266,4.5945507,87801.0,87800.0,35.32813503]
[1742954769857,4.4819357,87801.0,87800.0,35.32813503]
[1742954771906,1.3651737,87801.0,87800.0,35.32813503]
[1742954772403,4.7737937,87801.0,87800.0,35.32813503]
[1742954772607,4.81134043,87801.0,87800.0,35.32813503]
[1742954773335,4.65110543,87801.0,87800.0,35.32813503]
[1742954773729,4.55106243,87801.0,87800.0,35.32813503]
[1742954773935,4.42645843,87801.0,87800.0,35.32813503]
[1742954774516,4.31220079,87801.0,87800.0,35.32813503]
[1742954775689,4.33004116,87801.0,87800.0,35.32813503]
[1742954777132,4.32829454,87801.0,87800.0,35.32813503]
[1742954781131,4.19631454,87801.0,87800.0,35.32813503]
[1742954782304,4.1951414,87801.0,87800.0,35.32813503]
[1742954782518,4.29155867,87801.0,87800.0,35.32813503]
[1742954783294,6.00763967,87801.0,87800.0,35.32813503]
[1742954783474,1.24669267,87801.0,87800.0,35.32813503]
[1742954783670,5.78263967,87801.0,87800.0,35.32813503]
[1742954784296,5.77909243,87801.0,87800.0,35.32813503]
[1742954784458,5.64729243,87801.0,87800.0,35.32813503]
[1742954784656,5.28925243,87801.0,87800.0,35.32813503]
[1742954784862,5.06968643,87801.0,87800.0,35.32813503]
[1742954785658,5.08752677,87801.0,87800.0,35.32813503]
[1742954787144,5.08752677,87801.0,87800.0,35.32097814]
[1742954787349,5.05326777,87801.0,87800.0,35.32097814]
[1742954792603,5.03542743,87801.0,87800.0,35.32097814]
[1742954793915,1.20864643,87801.0,87800.0,35.32097814]
[1742954794117,5.47123343,87801.0,87800.0,35.32097814]
[1742954794411,1.20864643,87801.0,87800.0,35.32097814]
[1742954794619,5.48421443,87801.0,87800.0,35.32097814]
[1742954794821,5.54636443,87801.0,87800.0,35.32097814]
[1742954795428,5.50113143,87801.0,87800.0,35.32097814]
[1742954795579,5.51897177,87801.0,87800.0,35.32097814]
[1742954796361,5.45050677,87801.0,87800.0,35.32097814]
[1742954797166,5.34210877,87801.0,87800.0,35.32097814]
[1742954798555,5.22785113,87801.0,87800.0,35.32097814]
[1742954798989,5.22292913,87801.0,87800.0,35.32097814]
[1742954799890,1.10730713,87801.0,87800.0,35.32097814]
[1742954800473,1.11869613,87801.0,87800.0,35.32097814]
[1742954801462,6.06578713,87801.0,87800.0,35.32097814]
[1742954801752,5.64275313,87801.0,87800.0,35.32097814]
[1742954801949,5.75701077,87801.0,87800.0,35.32097814]
[1742954802403,5.75627134,87801.0,87800.0,35.32097814]
[1742954802607,5.738431,87801.0,87800.0,35.32097814]
[1742954802764,5.638073,87801.0,87800.0,35.32097814]
[1742954802970,5.52381536,87801.0,87800.0,35.32097814]
[1742954803620,5.54508021,87801.0,87800.0,35.32097814]
[1742954803847,5.45763621,87801.0,87800.0,35.32097814]
[1742954804475,1.12138121,87801.0,87800.0,35.32097814]
[1742954805011,5.92673721,87801.0,87800.0,35.32097814]
[1742954805412,6.05883521,87801.0,87800.0,35.32097814]
[1742954805612,5.95879321,87801.0,87800.0,35.32097814]
[1742954805809,5.43382721,87801.0,87800.0,35.32097814]
[1742954806038,5.28227421,87801.0,87800.0,35.32097814]
[1742954806358,5.14710021,87801.0,87800.0,35.32097814]
[1742954806556,5.12583536,87801.0,87800.0,35.32097814]
[1742954806778,4.99427536,87801.0,87800.0,35.32097814]
[1742954807018,5.12607536,87801.0,87800.0,35.32097814]
[1742954807237,5.03308829,87801.0,87800.0,35.32097814]
[1742954809617,5.01181772,87801.0,87800.0,35.32097814]
[1742954812576,4.99397736,87801.0,87800.0,35.32097814]
[1742954813670,5.08077736,87801.0,87800.0,35.32097814]
[1742954814455,4.97461936,87801.0,87800.0,35.32097814]
[1742954814660,5.088877,87801.0,87800.0,35.32097814]
[1742954815424,5.11015061,87801.0,87800.0,35.32097814]
[1742954815628,5.12799106,87801.0,87800.0,35.32097814]
[1742954815835,5.12299106,87801.0,87800.0,35.32097814]
[1742954816033,5.11799106,87801.0,87800.0,35.32097814]
[1742954817300,5.12799106,87801.0,87800.0,35.32097814]
[1742954818161,6.18303206,87801.0,87800.0,35.32097814]
[1742954818912,6.15707406,87801.0,87800.0,35.32097814]
[1742954820425,6.01516406,87801.0,87800.0,35.32097814]
[1742954821707,5.82341391,87801.0,87800.0,34.76418914]
[1742954822358,5.36915591,87801.0,87800.0,34.76418914]
[1742954822545,5.33898891,87801.0,87800.0,34.76418914]
[1742954823309,5.33398891,87801.0,87800.0,34.76418914]
[1742954823534,5.3077153,87801.0,87800.0,34.76418914]
[1742954823739,5.3127153,87801.0,87800.0,34.76418914]
[1742954824029,5.7586713,87801.0,87800.0,34.76418914]
[1742954824259,6.2586713,87801.0,87800.0,34.76418914]
[1742954824823,6.24083085,87801.0,87800.0,34.76418914]
[1742954825649,5.78608685,87801.0,87800.0,34.76418914]
[1742954826997,5.57799585,87801.0,87800.0,34.76418914]
[1742954827577,5.59583692,87801.0,87800.0,34.76418914]
[1742954828909,6.14208792,87801.0,87800.0,34.76418914]
[1742954829103,6.36908792,87801.0,87800.0,34.76418914]
[1742954829291,6.14972992,87801.0,87800.0,34.76418914]
[1742954830273,5.95331546,87801.0,87800.0,34.76418914]
[1742954831034,5.81042146,87801.0,87800.0,34.76418914]
[1742954831232,5.56271246,87801.0,87800.0,34.76418914]
[1742954832620,5.2858729,87801.0,87800.0,34.76418914]
[1742954833015,5.2864329,87801.0,87800.0,34.76418914]
[1742954833633,5.30097375,87801.0,87800.0,34.76418914]
[1742954833845,5.42967375,87801.0,87800.0,33.34678814]
[1742954833980,2.59254577,87801.0,87800.0,29.9135848]
[1742954834183,2.59254577,87801.0,87800.0,27.95925476]
[1742954834416,2.58307812,87801.0,87800.0,27.85825476]
[1742954834587,2.54161465,87801.0,87800.0,26.08276076]
[1742954834787,6.62925865,87801.0,87800.0,24.91359576]
[1742954834997,6.63425865,87801.0,87800.0,24.02828776]
[1742954835406,7.26952465,87801.0,87800.0,24.02828776]
[1742954835631,6.90797081,87801.0,87800.0,24.02828776]
[1742954836355,6.89797081,87801.0,87800.0,24.02828776]
[1742954836560,6.90297081,87801.0,87800.0,24.02828776]
[1742954836735,7.33884081,87801.0,87800.0,24.02828776]
[1742954837140,7.33384081,87801.0,87800.0,24.02828776]
[1742954837504,6.25891926,87801.0,87800.0,23.32128776]
[1742954837705,5.67515537,87801.0,87800.0,23.01828776]
[1742954837916,5.37515537,87801.0,87800.0,23.01828776]
[1742954838120,5.67515537,87801.0,87800.0,23.01828776]
[1742954839355,5.67015537,87801.0,87800.0,23.01828776]
[1742954839567,5.67515537,87801.0,87800.0,23.01828776]
[1742954840023,5.67015537,87801.0,87800.0,23.01828776]
[1742954840513,5.67515537,87801.0,87800.0,23.01828776]
[1742954841060,5.67015537,87801.0,87800.0,23.01828776]
[1742954841379,5.67515537,87801.0,87800.0,23.01828776]
[1742954842304,5.65731121,87801.0,87800.0,23.01828776]
[1742954842839,5.65699121,87801.0,87800.0,23.01828776]
[1742954843670,5.50181082,87801.0,87800.0,23.01828776]
[1742954843855,5.52829121,87801.0,87800.0,23.01828776]
[1742954845454,5.54613423,87801.0,87800.0,23.01828776]
[1742954846061,5.54113423,87801.0,87800.0,23.01828776]
[1742954846242,5.53613423,87801.0,87800.0,23.01828776]
[1742954846442,5.54113423,87801.0,87800.0,23.01828776]
[1742954846647,5.54613423,87801.0,87800.0,23.01828776]
[1742954847026,5.59253423,87801.0,87800.0,23.01828776]
[1742954847260,5.67303423,87801.0,87800.0,22.99937948]
[1742954850297,5.7094977,87801.0,87800.0,22.99937948]
[1742954851997,5.74316025,87801.0,87800.0,22.24705648]
[1742954852226,2.71968767,87801.0,87800.0,19.02436151]
[1742954852440,2.6193658,87801.0,87800.0,18.75555151]
[1742954852651,2.67504239,87801.0,87800.0,18.65455151]
[1742954852800,2.70152278,87801.0,87800.0,18.65455151]
[1742954853185,2.70152278,87801.0,87800.0,18.25055151]
[1742954853953,2.59068021,87801.0,87800.0,18.25055151]
[1742954854155,2.72384021,87801.0,87800.0,18.25055151]
[1742954854354,7.09912821,87801.0,87800.0,18.25055151]
[1742954854556,6.98226221,87801.0,87800.0,18.25055151]
[1742954854765,7.06139829,87801.0,87800.0,18.25055151]
[1742954854965,6.87981664,87801.0,87800.0,18.25055151]
[1742954855274,6.81912264,87801.0,87800.0,18.25055151]
[1742954855428,6.79287064,87801.0,87800.0,18.25055151]
[1742954855631,6.81071458,87801.0,87800.0,18.25055151]
[1742954858295,6.81051458,87801.0,87800.0,18.25055151]
[1742954859719,6.31194258,87801.0,87800.0,18.25055151]
[1742954861315,6.29070515,87801.0,87800.0,18.25055151]
[1742954861530,6.88258515,87801.0,87800.0,18.24555151]
[1742954862033,6.88258515,87801.0,87800.0,18.24055151]
[1742954862358,6.88258515,87801.0,87800.0,18.23555151]
[1742954862669,6.85974121,87801.0,87800.0,18.23555151]
[1742954863244,2.98113399,87801.0,87800.0,18.23055151]